bitfinex/quotes_BTCUSD_20240908
["timestamp","ask_amount","ask_price","bid_price","bid_amount"]
[1725809936584,1.40009606,54142.0,54137.0,0.147773]
[1725809936859,1.25233406,54142.0,54137.0,0.24562841]
[1725809937272,1.25233406,54142.0,54137.0,0.25862841]
[1725809937474,1.40009306,54142.0,54137.0,0.25862841]
[1725809938277,1.40009306,54142.0,54137.0,0.27262841]
[1725809939268,1.25314406,54143.0,54137.0,0.56817441]
[1725809940078,1.25314406,54143.0,54137.0,0.55517441]
[1725809940271,0.14776,54142.0,54137.0,0.25962841]
[1725809940698,1.40090006,54143.0,54137.0,0.55517441]
[1725809940946,0.295524,54141.0,54137.0,0.11185541]
[1725809941128,0.147763,54141.0,54137.0,0.25962841]
[1725809941276,0.147763,54141.0,54137.0,0.27362841]
[1725809942105,0.147763,54141.0,54137.0,0.175773]
[1725809942323,0.14776,54142.0,54137.0,0.175773]
[1725809942531,0.14776,54142.0,54137.0,0.147773]
[1725809942731,0.14776,54142.0,54137.0,0.161773]
[1725809942937,0.14776,54142.0,54137.0,0.175773]
[1725809943198,0.147763,54141.0,54137.0,0.161773]
[1725809943596,0.147763,54141.0,54137.0,0.175773]
[1725809944358,0.147763,54141.0,54137.0,0.161773]
[1725809944566,0.147763,54141.0,54137.0,0.175773]
[1725809945599,0.147769,54139.0,54137.0,0.028]
[1725809945810,0.147766,54140.0,54137.0,0.028]
[1725809947491,0.147767,54139.0,54137.0,0.028]
[1725809949802,1.25314406,54143.0,54137.0,0.27471944]
[1725809950029,0.147762,54141.0,54137.0,0.27471944]
[1725809950497,1.40090206,54143.0,54137.0,0.27471944]
[1725809950778,0.14776,54142.0,54137.0,0.27471944]
[1725809950986,0.147762,54141.0,54137.0,0.27471944]
[1725809951861,0.00081,54143.0,54137.0,1.04961144]
[1725809952541,0.00081,54143.0,54137.0,1.03561144]
[1725809952918,0.00081,54143.0,54137.0,1.04961144]
[1725809953298,0.00081,54143.0,54137.0,1.03561144]
[1725809953522,0.00081,54143.0,54137.0,1.02161144]
[1725809953736,0.00081,54143.0,54137.0,1.03561144]
[1725809953947,0.00081,54143.0,54137.0,1.04961144]
[1725809954158,0.00081,54143.0,54137.0,1.03561144]
[1725809954581,0.00081,54143.0,54137.0,1.04961144]
[1725809956098,0.147766,54140.0,54137.0,0.12694644]
[1725809956292,0.147768,54139.0,54137.0,0.12694644]
[1725809957167,2.67554106,54138.0,54137.0,0.014]
[1725809957361,2.67554106,54138.0,54136.0,0.001628]
[1725809957362,0.443319,54137.0,54136.0,0.001628]
[1725809957613,0.738865,54137.0,54136.0,0.001628]
[1725809958721,0.443319,54137.0,54136.0,0.015628]
[1725809958930,1.25314806,54138.0,54136.0,0.515628]
[1725809959132,1.40092006,54138.0,54136.0,0.706028]
[1725809959484,1.40092006,54138.0,54136.0,0.708028]
[1725809959888,1.25314806,54138.0,54136.0,0.706028]
[1725809960237,1.25314806,54138.0,54136.0,0.844803]
[1725809960367,1.25314806,54138.0,54136.0,0.856803]
[1725809960579,1.25314806,54138.0,54136.0,0.844803]
[1725809960789,1.25314806,54138.0,54136.0,0.697028]
[1725809961005,1.25314806,54138.0,54136.0,0.711028]
[1725809961195,1.25314806,54138.0,54136.0,0.697028]
[1725809961636,1.25314806,54138.0,54136.0,0.706028]
[1725809961841,1.25314806,54138.0,54136.0,0.692028]
[1725809961989,1.25314806,54138.0,54136.0,0.700028]
[1725809962422,1.25314806,54138.0,54136.0,0.692028]
[1725809962664,1.25314806,54138.0,54136.0,0.703028]
[1725809962817,1.25314806,54138.0,54136.0,0.850803]
[1725809963182,0.000814,54138.0,54136.0,0.853803]
[1725809963632,0.000814,54138.0,54136.0,0.849803]
[1725809963831,0.000814,54138.0,54136.0,0.863803]
[1725809964254,0.000814,54138.0,54136.0,0.849803]
[1725809964462,0.000814,54138.0,54136.0,0.863803]
[1725809964671,0.000814,54138.0,54136.0,0.716028]
[1725809964904,0.000814,54138.0,54136.0,0.692028]
[1725809965111,0.000814,54138.0,54136.0,0.717028]
[1725809965732,0.000814,54138.0,54136.0,0.706028]
[1725809966196,0.000814,54138.0,54136.0,0.719028]
[1725809968497,0.1059,54136.0,54132.0,0.01848067]
[1725809968784,0.08259763,54134.0,54109.0,0.501628]
[1725809969016,1.340425,54118.0,54109.0,0.001628]
[1725809969227,1.78348592,54118.0,54109.0,0.001628]
[1725809969448,1.78433363,54118.0,54109.0,0.001628]
[1725809969633,1.857325,54118.0,54109.0,0.001628]
[1725809970155,1.859325,54118.0,54109.0,0.001628]
[1725809970373,1.857325,54118.0,54109.0,0.001628]
[1725809971023,1.858325,54118.0,54109.0,0.001628]
[1725809972076,1.92416661,54118.0,54109.0,0.001628]
[1725809972979,1.872325,54118.0,54109.0,0.001628]
[1725809973666,1.862325,54118.0,54109.0,0.001628]
[1725809974337,1.848325,54118.0,54109.0,0.001628]
[1725809974590,1.539675,54118.0,54117.0,0.002628]
[1725809974801,1.542675,54118.0,54117.0,0.002628]
[1725809975038,1.531675,54118.0,54117.0,0.001628]
[1725809975248,2.78400906,54118.0,54117.0,0.001628]
[1725809975457,2.78400906,54118.0,54117.0,0.002628]
[1725809975458,2.79500906,54118.0,54117.0,0.002628]
[1725809975890,2.78400906,54118.0,54117.0,0.001628]
[1725809976102,2.78100906,54118.0,54117.0,0.001628]
[1725809976317,2.79200906,54118.0,54117.0,0.002628]
[1725809976529,2.79300906,54118.0,54117.0,0.002628]
[1725809977387,2.79200906,54118.0,54117.0,0.002628]
[1725809977633,2.79300906,54118.0,54117.0,0.002628]
[1725809978267,2.67610906,54118.0,54117.0,0.001628]
[1725809978478,2.68710906,54118.0,54117.0,0.002628]
[1725809978932,2.67610906,54118.0,54117.0,0.001628]
[1725809979357,2.68710906,54118.0,54117.0,0.002628]
[1725809979781,2.68710906,54118.0,54117.0,0.001628]
[1725809979782,2.67510906,54118.0,54117.0,0.001628]
[1725809980304,2.68510906,54118.0,54117.0,0.002628]
[1725809981381,2.67510906,54118.0,54117.0,0.001628]
[1725809981626,2.67510906,54118.0,54117.0,0.002628]
[1725809981845,2.68310906,54118.0,54117.0,0.002628]
[1725809982970,2.68310906,54118.0,54117.0,0.004628]
[1725809985782,2.29510906,54118.0,54117.0,0.004628]
[1725809986016,1.99945906,54118.0,54117.0,0.200828]
[1725809986527,1.99945906,54118.0,54090.0,0.001626]
[1725809986528,0.431621,54105.0,54090.0,0.001626]
[1725809986772,1.62623163,54105.0,54090.0,0.001626]
[1725809987015,1.13888,54092.0,54090.0,0.001626]
[1725809987232,1.434672,54092.0,54090.0,0.001626]
[1725809987941,1.573572,54092.0,54090.0,0.001626]
[1725809988811,1.584572,54092.0,54091.0,0.002626]
[1725809989260,1.584572,54092.0,54091.0,0.001626]
[1725809989261,1.573572,54092.0,54091.0,0.001626]
[1725809989467,1.62948063,54092.0,54091.0,0.001626]
[1725809989673,1.586572,54092.0,54091.0,0.002626]
[1725809989906,1.590572,54092.0,54091.0,0.002626]
[1725809990129,1.576572,54092.0,54091.0,0.002626]
[1725809990350,0.456688,54092.0,54091.0,0.002626]
[1725809990589,0.458688,54092.0,54091.0,0.002626]
[1725809990833,0.458688,54092.0,54091.0,0.001626]
[1725809990834,0.443688,54092.0,54091.0,0.001626]
[1725809991041,0.447688,54092.0,54091.0,0.001626]
[1725809991254,0.015,54092.0,54091.0,0.09799558]
[1725809991486,0.015,54092.0,54091.0,0.59799558]
[1725809991704,0.004,54092.0,54091.0,0.59699558]
[1725809991915,0.004,54092.0,54091.0,0.59799558]
[1725809992571,0.147889,54095.0,54091.0,0.59699558]
[1725809992804,0.147891,54094.0,54091.0,0.502626]
[1725809993065,0.147891,54094.0,54091.0,0.501626]
[1725809993282,0.295771,54096.0,54091.0,0.501626]
[1725809993506,0.002,54092.0,54091.0,0.512626]
[1725809993735,0.001,54092.0,54091.0,0.59833992]
[1725809993962,0.001,54092.0,54091.0,0.60933992]
[1725809994433,0.001,54092.0,54091.0,0.59833992]
[1725809994870,0.147891,54094.0,54091.0,0.59833992]
[1725809995076,0.147891,54094.0,54091.0,0.504626]
[1725809995719,0.147891,54094.0,54091.0,0.512626]
[1725809995947,0.001,54092.0,54091.0,0.507626]
[1725809996163,0.001,54092.0,54091.0,0.60353622]
[1725809996377,1.25233406,54094.0,54091.0,0.60853622]
[1725809996378,1.25333406,54094.0,54091.0,0.60853622]
[1725809996579,1.25333406,54094.0,54091.0,0.512626]
[1725809996820,1.25333406,54094.0,54091.0,0.516626]
[1725809997041,0.147894,54093.0,54091.0,0.505626]
[1725809997252,1.25233406,54094.0,54091.0,0.505626]
[1725809997462,0.001,54092.0,54091.0,0.516626]
[1725809997671,0.001,54092.0,54091.0,0.614127]
[1725809998123,0.001,54092.0,54091.0,0.610127]
[1725809998571,0.001,54092.0,54091.0,0.615127]
[1725809998787,0.147893,54093.0,54091.0,0.604127]
[1725809999008,0.147896,54092.0,54091.0,0.512626]
[1725809999244,0.147896,54092.0,54091.0,0.610127]
[1725809999478,0.147896,54092.0,54091.0,0.599127]
[1725809999694,0.148896,54092.0,54091.0,0.610127]
[1725809999941,0.149896,54092.0,54091.0,0.616127]
[1725810002479,0.002,54092.0,54091.0,1.059822]
[1725810002717,0.002,54092.0,54091.0,1.954219]
[1725810003399,0.001,54092.0,54091.0,1.948219]
[1725810003649,1.25233406,54093.0,54092.0,0.73948]
[1725810003868,1.25233406,54093.0,54092.0,1.02174121]
[1725810005487,1.25233406,54093.0,54092.0,1.02974121]
[1725810005735,1.25333406,54093.0,54092.0,1.02974121]
[1725810005967,1.25333406,54093.0,54092.0,1.04074121]
[1725810006205,1.25433406,54093.0,54092.0,1.04074121]
[1725810006909,1.25433406,54093.0,54092.0,1.05810555]
[1725810007180,1.25233406,54103.0,54102.0,1.0986]
[1725810007419,0.295679,54113.0,54108.0,0.5]
[1725810007660,1.25233406,54114.0,54108.0,0.5]
[1725810007661,0.147841,54112.0,54108.0,0.5]
[1725810007899,0.147841,54112.0,54109.0,0.1838]
[1725810008135,0.295679,54113.0,54109.0,0.1838]
[1725810008372,1.54800706,54114.0,54109.0,0.1838]
[1725810008628,1.54800706,54114.0,54109.0,0.6838]
[1725810008629,0.443539,54110.0,54109.0,0.6838]
[1725810008876,0.14786301,54110.0,54109.0,0.6838]
[1725810009124,0.44355601,54110.0,54109.0,0.6838]
[1725810009366,0.44355601,54110.0,54109.0,0.7038]
[1725810009603,0.14786301,54110.0,54109.0,0.6898]
[1725810009831,0.14786301,54110.0,54109.0,0.6958]
[1725810010288,0.14786301,54110.0,54109.0,0.6838]
[1725810011188,0.14786301,54110.0,54109.0,0.6868]
[1725810011651,0.14786301,54110.0,54109.0,0.7008]
[1725810011873,0.14786301,54110.0,54109.0,0.6978]
[1725810012332,0.14886301,54110.0,54109.0,0.7048]
[1725810012793,0.14967801,54110.0,54109.0,0.7048]
[1725810014021,2.132147,54099.0,54098.0,1.09803]
[1725810014246,2.046247,54099.0,54094.0,0.9115]
[1725810014490,2.046247,54099.0,54071.0,0.1835]
[1725810014491,1.159092,54091.0,54071.0,0.1835]
[1725810014726,1.577889,54091.0,54071.0,0.1835]
[1725810014976,1.873686,54091.0,54071.0,0.1835]
[1725810015477,1.895286,54091.0,54071.0,0.1835]
[1725810015956,1.897286,54091.0,54090.0,0.002626]
[1725810016190,2.06707167,54091.0,54090.0,0.001626]
[1725810016418,1.897286,54091.0,54090.0,0.001626]
[1725810016666,1.95235946,54091.0,54090.0,0.001626]
[1725810016906,1.867286,54091.0,54090.0,0.001626]
[1725810017139,1.877286,54091.0,54090.0,0.001626]
[1725810017602,1.430049,54088.0,54071.0,0.1835]
[1725810017868,1.420049,54088.0,54074.0,0.5]
[1725810019072,1.423049,54088.0,54074.0,0.5]
[1725810019312,1.420049,54088.0,54074.0,0.5]
[1725810019538,1.429049,54088.0,54087.0,0.002626]
[1725810020847,1.420049,54088.0,54087.0,0.001626]
[1725810021288,1.420049,54088.0,54087.0,0.002626]
[1725810021289,1.046349,54088.0,54087.0,0.002626]
[1725810021759,2.28768306,54088.0,54087.0,0.001626]
[1725810022193,2.29768306,54088.0,54087.0,0.002626]
[1725810022633,2.29768306,54088.0,54050.0,0.961039]
[1725810022634,0.02,54063.0,54050.0,0.961039]
[1725810022898,1.14474,54051.0,54050.0,0.961039]
[1725810023166,1.540756,54051.0,54050.0,0.961039]
[1725810023394,1.563756,54051.0,54050.0,0.961039]
[1725810023634,1.58237353,54051.0,54050.0,0.961039]
[1725810024774,1.26335753,54051.0,54050.0,0.961039]
[1725810025478,1.26335753,54051.0,54050.0,0.962669]
[1725810027552,0.03861753,54051.0,54050.0,1.05783872]
[1725810029578,0.03861753,54051.0,54050.0,0.962669]
[1725810030071,0.18662553,54051.0,54050.0,0.962669]
[1725810030284,0.03861753,54051.0,54050.0,1.0590979]
[1725810032005,1.29095159,54051.0,54050.0,1.0590979]
[1725810033312,1.29095159,54051.0,54050.0,1.2503979]
[1725810034227,1.29095159,54051.0,54050.0,0.962669]
[1725810034228,0.03861753,54051.0,54050.0,0.962669]
[1725810034440,1.18025753,54051.0,54050.0,0.962669]
[1725810035596,0.48264153,54051.0,54050.0,0.962669]
[1725810036032,0.18662553,54051.0,54050.0,0.962669]
[1725810036497,0.18662553,54051.0,54042.0,1.460064]
[1725810036498,0.188057,54033.0,54010.0,0.1854732]
[1725810036708,0.91863581,54033.0,54010.0,0.1854732]
[1725810036924,1.63386581,54033.0,54010.0,0.1854732]
[1725810037146,1.92998081,54033.0,54010.0,0.1854732]
[1725810037589,1.95158081,54033.0,54010.0,0.1854732]
[1725810037800,1.95158081,54033.0,54010.0,0.3335932]
[1725810037801,1.94158081,54033.0,54010.0,0.3335932]
[1725810038020,1.95158081,54033.0,54010.0,0.1854732]
[1725810038917,1.95358081,54033.0,54010.0,0.1854732]
[1725810039245,1.95158081,54033.0,54010.0,0.1854732]
[1725810041326,1.95158081,54033.0,54010.0,0.3335912]
[1725810041532,1.95158081,54033.0,54010.0,0.1854732]
[1725810041776,0.01,54022.0,54021.0,0.296181]
[1725810041995,0.01,54031.0,54025.0,1.0727]
[1725810042227,0.02246996,54030.0,54025.0,1.0727]
[1725810042487,0.02246996,54030.0,54027.0,0.148073]
[1725810042696,0.02246996,54030.0,54025.0,1.0727]
[1725810042697,0.02246996,54030.0,54028.0,0.14807]
[1725810042906,0.02246996,54030.0,54025.0,1.0727]
[1725810043127,0.02246996,54030.0,54028.0,0.14807]
[1725810043553,0.148031,54043.0,54036.0,0.148047]
[1725810043771,0.296058,54044.0,54037.0,0.0148047]
[1725810044010,0.296051,54045.0,54026.0,0.00370173]
[1725810044268,0.148034,54042.0,54035.0,0.14805]
[1725810044475,0.148036,54041.0,54035.0,0.14805]
[1725810044683,0.1,54049.0,54036.0,0.148047]
[1725810044684,0.296055,54044.0,54036.0,0.148047]
[1725810044893,0.296039,54047.0,54038.0,0.148043]
[1725810045112,0.1,54049.0,54038.0,0.0148043]
[1725810045113,0.1,54046.0,54038.0,0.0148043]
[1725810045338,0.1,54046.0,54041.0,0.148033]
[1725810045595,0.671822,54050.0,54041.0,0.148033]
[1725810045596,0.296022,54050.0,54041.0,0.148033]
[1725810045813,0.14802,54047.0,54042.0,0.148032]
[1725810046029,0.296022,54050.0,54039.0,0.868777]
[1725810046265,0.148017,54048.0,54043.0,0.148028]
[1725810046475,0.148017,54048.0,54039.0,0.868777]
[1725810046476,0.148019,54047.0,54041.0,0.148034]
[1725810046687,0.148019,54047.0,54042.0,0.148032]
[1725810046911,0.148019,54047.0,54043.0,0.1016807]
[1725810047154,0.148013,54050.0,54044.0,0.148026]
[1725810047370,0.3758,54055.0,54044.0,0.148026]
[1725810047371,0.148014,54049.0,54044.0,0.148026]
[1725810047608,0.148009,54051.0,54043.0,0.1016807]
[1725810047831,0.395993,54056.0,54046.0,0.14802]
[1725810048080,0.148005,54053.0,54047.0,0.148018]
[1725810048311,0.671762,54061.0,54047.0,0.148018]
[1725810048543,0.671762,54061.0,54044.0,0.03977557]
[1725810048544,0.148012,54050.0,54044.0,0.03977557]
[1725810048768,0.444018,54052.0,54045.0,0.148022]
[1725810049001,0.148006,54052.0,54046.0,0.148021]
[1725810049714,0.295996,54055.0,54048.0,0.148015]
[1725810049940,0.148007,54052.0,54049.0,0.0148015]
[1725810050381,0.148008,54051.0,54049.0,0.0148015]
[1725810050589,0.296001,54054.0,54049.0,0.0148015]
[1725810050811,0.148006,54052.0,54049.0,0.0148015]
[1725810051015,0.148007,54052.0,54049.0,0.0148015]
[1725810051446,0.148008,54051.0,54050.0,0.01628225]
[1725810052533,0.148008,54051.0,54045.0,0.148023]
[1725810053910,0.148011,54050.0,54045.0,0.148023]
[1725810054139,0.148005,54053.0,54047.0,0.148018]
[1725810054363,0.148008,54051.0,54045.0,0.444068]
[1725810054617,0.148012,54050.0,54045.0,0.148022]
[1725810054839,0.148012,54050.0,54046.0,0.01894276]
[1725810055523,0.148009,54051.0,54046.0,0.01894276]
[1725810055975,0.148011,54050.0,54046.0,0.01894276]
[1725810056204,0.1470675,54050.0,54046.0,0.01894276]
[1725810056477,0.1470675,54050.0,54047.0,0.02083703]
[1725810056719,0.148023,54046.0,54044.0,0.03977557]
[1725810056965,0.148023,54046.0,54043.0,0.00163]
[1725810057409,0.148019,54048.0,54043.0,0.00163]
[1725810057856,0.148019,54048.0,54043.0,0.14966]
[1725810058540,0.148027,54044.0,54043.0,0.00163]
[1725810058770,0.148022,54046.0,54043.0,0.059063]
[1725810058993,0.148025,54045.0,54043.0,0.059063]
[1725810061258,0.148027,54044.0,54043.0,0.00163]
[1725810061965,0.296039,54047.0,54043.0,0.00163]
[1725810062169,0.148025,54045.0,54043.0,0.00163]
[1725810062580,0.148027,54044.0,54043.0,0.00163]
[1725810063034,0.148027,54044.0,54043.0,0.0738669]
[1725810063240,0.000816,54049.0,54043.0,0.0738669]
[1725810063241,0.000816,54049.0,54045.0,0.148023]
[1725810063454,0.000816,54049.0,54046.0,0.148021]
[1725810063930,0.000816,54049.0,54047.0,0.335118]
[1725810064141,0.000816,54049.0,54048.0,0.07218481]
[1725810065319,0.295945,54064.0,54053.0,0.148001]
[1725810065578,0.147984,54060.0,54054.0,0.295998]
[1725810065798,0.95387565,54061.0,54056.0,0.147994]
[1725810065799,1.10185665,54061.0,54056.0,0.147994]
[1725810066031,1.10185665,54061.0,54057.0,0.0443992]
[1725810066261,0.95387565,54061.0,54057.0,0.1923892]
[1725810066495,0.95387565,54061.0,54058.0,0.147989]
[1725810069323,0.95387565,54061.0,54057.0,0.0443992]
[1725810069557,0.147985,54060.0,54057.0,0.0443992]
[1725810069824,0.95387565,54061.0,54057.0,0.1923902]
[1725810070055,1.10185665,54061.0,54058.0,0.04883902]
[1725810070980,0.95387565,54060.0,54058.0,0.04883902]
[1725810072185,0.95387565,54060.0,54058.0,0.19682602]
[1725810073680,0.95387565,54060.0,54059.0,0.147986]
[1725810073918,0.95387565,54060.0,54059.0,0.5852667]
[1725810074135,0.95387565,54060.0,54059.0,0.7682667]
[1725810074341,0.95387565,54060.0,54059.0,0.6202807]
[1725810075658,0.000814,54061.0,54059.0,0.6202807]
[1725810075880,0.000814,54061.0,54060.0,0.44395]
[1725810076087,0.000814,54061.0,54060.0,0.19428499]
[1725810077676,0.000814,54061.0,54060.0,0.49025199]
[1725810082291,0.000814,54061.0,54060.0,0.48975199]
[1725810085784,0.000814,54061.0,54060.0,0.87917208]
[1725810088230,0.000814,54061.0,54060.0,0.58320508]
[1725810089115,0.000814,54061.0,54060.0,0.13975508]
[1725810089345,0.000814,54061.0,54060.0,0.28773808]
[1725810093695,0.000814,54061.0,54060.0,0.58370508]
[1725810098947,0.000814,54061.0,54060.0,0.58533308]
[1725810102483,0.000814,54061.0,54060.0,0.62008579]
[1725810103364,0.000814,54061.0,54060.0,1.21201979]
[1725810103576,0.000814,54061.0,54060.0,1.21201727]
[1725810106324,0.000814,54061.0,54060.0,1.41081727]
[1725810106533,0.614092,54073.0,54070.0,0.147955]
[1725810106740,0.614092,54073.0,54071.0,0.0147955]
[1725810106741,0.414,54073.0,54071.0,0.0147955]
[1725810107979,0.561948,54073.0,54071.0,0.0147955]
[1725810108207,0.561948,54073.0,54069.0,0.147957]
[1725810108419,0.561948,54073.0,54061.0,0.03475019]
[1725810108420,0.01,54063.0,54062.0,0.03475019]
[1725810108677,0.158005,54052.0,54051.0,0.001628]
[1725810108917,1.154327,54052.0,54051.0,0.001628]
[1725810109134,1.573338,54052.0,54051.0,0.001628]
[1725810109619,1.594938,54052.0,54051.0,0.001628]
[1725810111073,1.175927,54052.0,54051.0,0.001628]
[1725810112026,1.154327,54052.0,54051.0,0.001628]
[1725810112245,1.154327,54052.0,54051.0,0.0475908]
[1725810113962,1.154327,54052.0,54051.0,0.001628]
[1725810115957,2.10820265,54052.0,54051.0,0.001628]
[1725810118662,0.1,54059.0,54026.0,0.05540571]
[1725810118663,1.332589,54030.0,54026.0,0.05540571]
[1725810118929,0.592169,54039.0,54025.0,0.5]
[1725810118930,0.838429,54026.0,54025.0,0.5]
[1725810119141,1.726888,54026.0,54025.0,0.5]
[1725810119577,1.74411162,54026.0,54025.0,0.5]
[1725810119828,1.76711162,54026.0,54025.0,0.5]
[1725810120291,1.94598278,54026.0,54025.0,0.5]
[1725810120516,1.76711162,54026.0,54025.0,0.5]
[1725810121634,1.47095862,54026.0,54025.0,0.5]
[1725810121866,1.134582,54026.0,54025.0,0.5]
[1725810122077,0.444229,54026.0,54025.0,0.5]
[1725810122703,0.740382,54026.0,54025.0,0.5]
[1725810122913,0.444229,54026.0,54025.0,0.5]
[1725810123332,0.444229,54026.0,54025.0,0.501628]
[1725810124203,0.148076,54026.0,54025.0,0.501628]
[1725810126239,0.444229,54026.0,54025.0,0.501628]
[1725810126918,0.444229,54026.0,54016.0,1.15326851]
[1725810126919,0.01,54001.0,53989.0,0.00251166]
[1725810127146,1.254925,54001.0,53989.0,0.00251166]
[1725810127361,1.847505,54001.0,53989.0,0.00251166]
[1725810127636,1.86470605,54001.0,53989.0,0.00251166]
[1725810127887,1.88630605,54001.0,53989.0,0.00251166]
[1725810128098,1.92648889,54001.0,53989.0,0.00251166]
[1725810128320,2.10914665,54001.0,53989.0,0.00251166]
[1725810128536,1.90648889,54001.0,53989.0,0.00251166]
[1725810128753,1.59299784,54001.0,53989.0,0.00251166]
[1725810129200,1.25210784,54001.0,53989.0,0.00251166]
[1725810129647,1.54839784,54001.0,53989.0,0.00251166]
[1725810130526,1.25210784,54001.0,53989.0,0.00251166]
[1725810130748,0.85790784,54001.0,53989.0,0.00251166]
[1725810131877,1.41549349,54001.0,53989.0,0.00251166]
[1725810132091,0.97105849,54001.0,54000.0,1.63889533]
[1725810132743,0.97105849,54001.0,54000.0,2.05149533]
[1725810132945,0.01718284,54001.0,54000.0,2.05149533]
[1725810133179,0.95387565,54009.0,54000.0,1.90334733]
[1725810133416,0.95387565,54009.0,54002.0,0.1892]
[1725810133645,0.148135,54005.0,54002.0,0.1892]
[1725810133852,0.01666847,54004.0,54002.0,0.1892]
[1725810135139,0.01666847,54004.0,54003.0,0.148139]
[1725810135352,0.95387565,54009.0,54004.0,0.148136]
[1725810135564,0.95387565,54009.0,54005.0,0.19182326]
[1725810135795,0.95387565,54009.0,54002.0,0.1892]
[1725810136037,0.95387565,54009.0,54003.0,0.296275]
[1725810136253,0.95387565,54009.0,54006.0,0.148131]
[1725810136491,0.95387565,54009.0,54006.0,0.14813]
[1725810136959,0.95387565,54008.0,54007.0,0.148128]
[1725810137197,0.77316092,54008.0,54007.0,1.23428051]
[1725810137414,0.59861292,54008.0,54007.0,1.23428051]
[1725810137842,0.57055294,54008.0,54007.0,1.23428051]
[1725810138074,0.45876027,54008.0,54007.0,1.42288051]
[1725810138297,0.75440036,54021.0,54014.0,0.148107]
[1725810138298,0.148096,54019.0,54014.0,0.148107]
[1725810138513,0.148096,54019.0,54010.0,0.5]
[1725810138514,0.36523433,54019.0,54017.0,0.1481]
[1725810138749,0.36523433,54019.0,54015.0,0.148105]
[1725810138961,0.296152,54027.0,54010.0,0.5]
[1725810138962,0.36523433,54023.0,54010.0,0.5]
[1725810139213,0.36523433,54023.0,54019.0,0.148094]
[1725810139440,0.148083,54024.0,54020.0,0.0148094]
[1725810139898,0.148083,54024.0,54020.0,0.1629024]
[1725810140132,0.85040936,54036.0,54023.0,0.5876]
[1725810140370,0.148073,54028.0,54023.0,0.5876]
[1725810140612,0.148073,54028.0,54024.0,0.07504954]
[1725810140833,0.4047,54039.0,54024.0,0.07504954]
[1725810140834,0.29612,54032.0,54025.0,0.148079]
[1725810141059,0.148067,54030.0,54025.0,0.148079]
[1725810141541,0.148069,54029.0,54025.0,0.148079]
[1725810141751,0.148069,54029.0,54026.0,0.02119969]
[1725810142858,0.296096,54037.0,54026.0,0.02119969]
[1725810143103,0.000814,54041.0,54031.0,0.148061]
[1725810143104,0.296089,54038.0,54031.0,0.148061]
[1725810143304,0.148051,54036.0,54032.0,0.0444197]
[1725810143763,0.296081,54040.0,54032.0,0.0444197]
[1725810143764,0.296094,54037.0,54032.0,0.0444197]
[1725810143969,0.148053,54035.0,54031.0,0.148062]
[1725810144842,0.148047,54037.0,54030.0,0.296127]
[1725810145057,0.148047,54037.0,54031.0,0.1886]
[1725810145276,0.148047,54037.0,54033.0,0.148057]
[1725810145481,0.148047,54037.0,54034.0,0.0632784]
[1725810145684,0.296081,54040.0,54034.0,0.0632784]
[1725810145895,0.148044,54038.0,54034.0,0.0632784]
[1725810146329,0.148044,54038.0,54034.0,0.2113324]
[1725810146788,0.000814,54041.0,54034.0,0.0632784]
[1725810147012,0.000814,54041.0,54038.0,0.148042]
[1725810147935,0.000814,54041.0,54039.0,0.14804]
[1725810148611,0.000814,54041.0,54038.0,0.148042]
[1725810149744,0.000814,54041.0,54035.0,0.50918784]
[1725810149953,0.000814,54041.0,54036.0,0.296097]
[1725810150182,0.000814,54041.0,54038.0,0.148041]
[1725810150633,0.000814,54041.0,54039.0,0.14804]
[1725810150848,0.000814,54041.0,54040.0,0.148038]
[1725810151065,0.000814,54041.0,54040.0,0.73024039]
[1725810151738,0.000814,54041.0,54040.0,1.12894039]
[1725810151960,0.000814,54041.0,54040.0,0.85406408]
[1725810152401,0.000814,54041.0,54040.0,0.70602608]
[1725810152639,0.296885,54041.0,54040.0,0.12112608]
[1725810152899,0.148849,54041.0,54040.0,0.12112608]
[1725810154699,0.000814,54041.0,54040.0,0.12112608]
[1725810155141,0.148849,54041.0,54040.0,0.12112608]
[1725810156070,0.296003,54054.0,54040.0,0.41720208]
[1725810156349,0.296003,54054.0,54047.0,0.148019]
[1725810156350,0.14801,54051.0,54047.0,0.148019]
[1725810156566,0.55430836,54059.0,54045.0,0.5]
[1725810157102,0.3903,54061.0,54045.0,0.5]
[1725810157321,0.295994,54055.0,54049.0,0.148012]
[1725810157577,0.295994,54055.0,54041.0,0.60425019]
[1725810157578,0.740315,54031.0,54018.0,0.00022285]
[1725810157798,1.148272,54019.0,54018.0,0.00022285]
[1725810158032,1.16549102,54019.0,54018.0,0.00022285]
[1725810158252,1.171272,54019.0,54018.0,0.00022285]
[1725810158468,1.18849032,54019.0,54018.0,0.00022285]
[1725810160778,1.04039432,54019.0,54018.0,0.00022285]
[1725810161002,1.18849032,54019.0,54018.0,0.00022285]
[1725810162015,0.89229832,54019.0,54018.0,0.00022285]
[1725810162113,0.444288,54019.0,54018.0,0.00022285]
[1725810162577,0.148096,54019.0,54018.0,0.00022285]
[1725810162805,0.148091,54021.0,54018.0,0.00022285]
[1725810163264,0.148093,54020.0,54019.0,0.01483278]
[1725810163487,0.148093,54020.0,54018.0,0.00022285]
[1725810164171,0.3903,54032.0,54018.0,0.14832085]
[1725810164414,0.3903,54032.0,54018.0,0.00022285]
[1725810164415,0.148086,54023.0,54018.0,0.00022285]
[1725810164643,0.148086,54023.0,54019.0,0.01483229]
[1725810165485,0.148088,54022.0,54019.0,0.01483229]
[1725810165710,0.148088,54022.0,54018.0,0.00022285]
[1725810167086,0.148088,54022.0,54017.0,0.148101]
[1725810167304,0.148083,54024.0,54018.0,0.148096]
[1725810167517,0.148083,54024.0,54019.0,0.04443]
[1725810167964,0.148083,54024.0,54019.0,0.192525]
[1725810168188,0.148086,54023.0,54019.0,0.04443]
[1725810168483,0.1,54031.0,54008.0,0.956534]
[1725810168484,1.639353,54009.0,54008.0,0.956534]
[1725810168752,0.740479,54020.0,54000.0,1.35670557]